fUSD/lending_fUSD_20250708
["ID","MTS","AMOUNT","RATE_DAILY","PERIOD"]
[370304965,1751944247757,-544.6,0.00030136,7]
[370304966,1751944247767,-500.0,0.00030136,7]
[370304967,1751944247777,-492.36711675,0.00030136,7]
[370304968,1751944247787,-460.0,0.00030136,7]
[370304969,1751944247797,-490.0,0.00030136,7]
[370304970,1751944247806,-492.74565434,0.00030136,7]
[370304971,1751944247817,-460.0,0.00030136,7]
[370304972,1751944247826,-460.0,0.00030136,7]
[370304973,1751944247835,-490.0,0.00030136,7]
[370304974,1751944247845,-608.12,0.00030136,7]
[370304975,1751944247855,-720.17,0.00030136,7]
[370304976,1751944247865,-561.46,0.00030136,7]
[370304977,1751944247875,-460.0,0.00030136,7]
[370304978,1751944247885,-460.0,0.00030136,7]
[370304979,1751944247894,-494.33,0.00030136,7]
[370304980,1751944247904,-460.0,0.00030136,7]
[370304981,1751944247914,-493.2515963,0.00030136,7]
[370304982,1751944247924,-460.0,0.00030136,7]
[370304983,1751944247934,-490.0,0.00030136,7]
[370304984,1751944247944,-460.0,0.00030136,7]
[370304985,1751944247954,-490.0,0.00030136,7]
[370304986,1751944247964,-490.0,0.00030136,7]
[370304987,1751944247974,-466.0,0.00030136,7]
[370304988,1751944247983,-460.0,0.00030136,7]
[370304989,1751944247993,-460.0,0.00030136,7]
[370304990,1751944248003,-569.00584119,0.00030136,7]
[370304991,1751944248013,-460.0,0.00030136,7]
[370304992,1751944248022,-771.76,0.00030136,7]
[370304993,1751944248033,-490.0,0.00030136,7]
[370304994,1751944248042,-292.63399811,0.00030136,7]
[370304995,1751944248688,-167.36600189,0.00030136,7]
[370304996,1751944248698,-490.0,0.00030136,7]
[370304997,1751944248708,-490.0,0.00030136,7]
[370304998,1751944248718,-490.0,0.00030136,7]
[370304999,1751944248729,-1098.25,0.00030136,7]
[370305000,1751944248739,-495.66715142,0.00030136,7]
[370305001,1751944248749,-490.0,0.00030136,7]
[370305002,1751944248759,-676.24,0.00030136,7]
[370305003,1751944248769,-460.0,0.00030136,7]
[370305004,1751944248779,-490.0,0.00030136,7]
[370305005,1751944248788,-490.0,0.00030136,7]
[370305006,1751944248797,-460.0,0.00030136,7]
[370305007,1751944248807,-460.0,0.00030136,7]
[370305008,1751944248817,-490.0,0.00030136,7]
[370305009,1751944248827,-460.0,0.00030136,7]
[370305010,1751944248837,-490.0,0.00030136,7]
[370305011,1751944248847,-460.0,0.00030136,7]
[370305012,1751944248857,-490.0,0.00030136,7]
[370305013,1751944248867,-490.0,0.00030136,7]
[370305014,1751944248876,-464.28290063,0.00030136,7]
[370305015,1751944248886,-492.19126896,0.00030136,7]
[370305016,1751944248895,-641.15,0.00030136,7]
[370305017,1751944248905,-490.0,0.00030136,7]
[370305018,1751944248914,-460.0,0.00030136,7]
[370305019,1751944248925,-460.0,0.00030136,7]
[370305020,1751944248934,-587.28,0.00030136,7]
[370305021,1751944248945,-666.76,0.00030136,7]
[370305022,1751944248955,-460.0,0.00030136,7]
[370305023,1751944248964,-460.0,0.00030136,7]
[370305024,1751944248974,-460.0,0.00030136,7]
[370305025,1751944248984,-490.0,0.00030136,7]
[370305026,1751944248993,-912.83,0.00030136,7]
[370305027,1751944249003,-460.0,0.00030136,7]
[370305028,1751944249013,-460.0,0.00030136,7]
[370305029,1751944249023,-458.75,0.00030136,7]
[370305030,1751944249033,-460.0,0.00030136,7]
[370305031,1751944249043,-460.0,0.00030136,7]
[370305032,1751944249052,-1135.83,0.00030136,7]
[370305033,1751944249062,-460.0,0.00030136,7]
[370305034,1751944249072,-490.0,0.00030136,7]
[370305035,1751944249081,-460.0,0.00030136,7]
[370305036,1751944249090,-176.42057737,0.00030136,7]
[370305037,1751944249101,-581.91,0.00030136,7]
[370305038,1751944249111,-490.0,0.00030136,7]
[370305039,1751944249120,-460.0,0.00030136,7]
[370305040,1751944249130,-460.0,0.00030136,7]
[370305041,1751944249140,-536.88,0.00030136,7]
[370305042,1751944249150,-387.11764097,0.00030136,7]
[370305043,1751944249160,-490.0,0.00030136,7]
[370305044,1751944249170,-460.0,0.00030136,7]
[370305045,1751944249180,-490.0,0.00030136,7]
[370305046,1751944249190,-490.0,0.00030136,7]
[370305047,1751944249200,-491.17195281,0.00030136,7]
[370305048,1751944249209,-490.0,0.00030136,7]
[370305049,1751944249219,-548.44,0.00030136,7]
[370305050,1751944249229,-460.0,0.00030136,7]
[370305051,1751944249238,-500.05981284,0.00030136,7]
[370305052,1751944249248,-687.81,0.00030136,7]
[370305053,1751944249257,-1149.85,0.00030136,7]
[370305054,1751944249266,-460.0,0.00030136,7]
[370305055,1751944249276,-460.0,0.00030136,7]
[370305056,1751944249286,-460.0,0.00030136,7]
[370305057,1751944249296,-490.0,0.00030136,7]
[370305058,1751944249305,-490.0,0.00030136,7]
[370305059,1751944249315,-460.0,0.00030136,7]
[370305060,1751944249325,-478.82,0.00030136,7]
[370305061,1751944249335,-493.0921481,0.00030136,7]
[370305062,1751944249344,-460.0,0.00030136,7]
[370305063,1751944249354,-460.0,0.00030136,7]
[370305064,1751944249365,-460.0,0.00030136,7]
[370305065,1751944249375,-490.0,0.00030136,7]
[370305066,1751944249385,-500.0,0.00030136,7]
[370305067,1751944249395,-490.0,0.00030136,7]
[370305068,1751944249408,-492.02066859,0.00030136,7]
[370305069,1751944249418,-460.0,0.00030136,7]
[370305070,1751944249428,-460.0,0.00030136,7]
[370305071,1751944249438,-161.268839,0.00030136,7]
[370305072,1751944249449,-712.95,0.00030136,7]
[370305073,1751944249459,-490.0,0.00030136,7]
[370305074,1751944249468,-500.0,0.00030136,7]
[370305075,1751944249478,-490.0,0.00030136,7]
[370305076,1751944249489,-460.0,0.00030136,7]
[370305077,1751944249498,-460.0,0.00030136,7]
[370305078,1751944249508,-1411.42,0.00030136,7]
[370305079,1751944249517,-1088.72,0.00030136,7]
[370305080,1751944249527,-490.0,0.00030136,7]
[370305081,1751944249537,-1672.0,0.00030136,7]
[370305082,1751944249546,-492.10304503,0.00030136,7]
[370305083,1751944249555,-210.0590532,0.00030136,7]
[370305084,1751944249570,-279.9409468,0.00030136,7]
[370305085,1751944249580,-508.44,0.00030136,7]
[370305086,1751944249590,-460.0,0.00030136,7]
[370305087,1751944249599,-490.0,0.00030136,7]
[370305088,1751944249609,-460.0,0.00030136,7]
[370305089,1751944249618,-460.0,0.00030136,7]
[370305090,1751944249628,-510.63,0.00030136,7]
[370305091,1751944249638,-567.98,0.00030136,7]
[370305092,1751944249648,-510.04,0.00030136,7]
[370305093,1751944249658,-545.16,0.00030136,7]
[370305094,1751944249669,-501.92,0.00030136,7]
[370305095,1751944249678,-460.0,0.00030136,7]
[370305096,1751944249687,-460.0,0.00030136,7]
[370305097,1751944249697,-490.0,0.00030136,7]
[370305098,1751944249706,-492.17290729,0.00030136,7]
[370305099,1751944249716,-490.0,0.00030136,7]
[370305100,1751944249725,-460.0,0.00030136,7]
[370305101,1751944249737,-500.76783269,0.00030136,7]
[370305102,1751944249747,-500.0,0.00030136,7]
[370305103,1751944249756,-611.41,0.00030136,7]
[370305104,1751944249765,-6409.26,0.00030136,7]
[370305105,1751944249775,-500.0,0.00030136,7]
[370305106,1751944249785,-490.0,0.00030136,7]
[370305107,1751944249794,-460.0,0.00030136,7]
[370305108,1751944249803,-490.0,0.00030136,7]
[370305109,1751944249812,-490.0,0.00030136,7]
[370305110,1751944249822,-460.0,0.00030136,7]
[370305111,1751944249831,-460.0,0.00030136,7]
[370305112,1751944249841,-460.0,0.00030136,7]
[370305113,1751944249851,-490.0,0.00030136,7]
[370305114,1751944249860,-460.0,0.00030136,7]
[370305115,1751944249870,-624.72,0.00030136,7]
[370305116,1751944249879,-460.0,0.00030136,7]
[370305117,1751944249890,-460.0,0.00030136,7]
[370305118,1751944249899,-460.0,0.00030136,7]
[370305119,1751944249909,-460.0,0.00030136,7]
[370305120,1751944249921,-685.17,0.00030136,7]
[370305121,1751944249930,-580.98,0.00030136,7]
[370305122,1751944249939,-499.72,0.00030136,7]
[370305123,1751944249949,-649.22,0.00030136,7]
[370305124,1751944249958,-460.0,0.00030136,7]
[370305125,1751944249968,-495.87895451,0.00030136,7]
[370305126,1751944249979,-933.06,0.00030136,7]
[370305127,1751944249988,-494.43,0.00030136,7]
[370305128,1751944249997,-490.0,0.00030136,7]
[370305129,1751944250008,-612.06,0.00030136,7]
[370305130,1751944250018,-460.0,0.00030136,7]
[370305131,1751944250027,-693.11,0.00030136,7]
[370305132,1751944250036,-460.0,0.00030136,7]
[370305133,1751944250047,-490.0,0.00030136,7]
[370305134,1751944250057,-1238.98,0.00030136,7]
[370305135,1751944250067,-495.9910271,0.00030136,7]
[370305136,1751944250079,-460.0,0.00030136,7]
[370305137,1751944250089,-460.0,0.00030136,7]
[370305138,1751944250099,-494.59106037,0.00030136,7]
[370305139,1751944250111,-673.04,0.00030136,7]
[370305140,1751944250122,-460.0,0.00030136,7]
[370305141,1751944250132,-460.0,0.00030136,7]
[370305142,1751944250142,-884.53,0.00030136,7]
[370305143,1751944250151,-499.74372749,0.00030136,7]
[370305144,1751944250161,-490.0,0.00030136,7]
[370305145,1751944250170,-2946.27,0.00030136,7]
[370305146,1751944250180,-460.0,0.00030136,7]
[370305147,1751944250189,-490.0,0.00030136,7]
[370305148,1751944250199,-460.0,0.00030136,7]
[370305149,1751944250208,-460.0,0.00030136,7]
[370305150,1751944250217,-552.11,0.00030136,7]
[370305151,1751944250227,-490.0,0.00030136,7]
[370305152,1751944250237,-460.0,0.00030136,7]
[370305153,1751944250246,-460.0,0.00030136,7]
[370305154,1751944250256,-460.0,0.00030136,7]
[370305155,1751944250265,-490.0,0.00030136,7]
[370305156,1751944250274,-729.47,0.00030136,7]
[370305157,1751944250284,-460.0,0.00030136,7]
[370305158,1751944250294,-495.28883308,0.00030136,7]
[370305159,1751944250304,-507.583689,0.00030136,7]
[370305160,1751944250314,-460.0,0.00030136,7]
[370305161,1751944250325,-460.0,0.00030136,7]
[370305162,1751944250335,-555.25366577,0.00030136,7]
[370305163,1751944250345,-460.0,0.00030136,7]
[370305164,1751944250355,-496.35926568,0.00030136,7]
[370305165,1751944250366,-209.36631832,0.00030136,7]
[370305166,1751944250382,-286.53549508,0.00030136,7]
[370305167,1751944250392,-490.0,0.00030136,7]
[370305168,1751944250402,-460.0,0.00030136,7]
[370305169,1751944250416,-496.3758523,0.00030136,7]
[370305170,1751944250426,-460.0,0.00030136,7]
[370305171,1751944250435,-490.0,0.00030136,7]
[370305172,1751944250445,-509.88,0.00030136,7]
[370305173,1751944250455,-769.59,0.00030136,7]
[370305174,1751944250466,-460.0,0.00030136,7]
[370305175,1751944250475,-1123.47,0.00030136,7]
[370305176,1751944250485,-491.51580849,0.00030136,7]
[370305177,1751944250494,-460.0,0.00030136,7]
[370305178,1751944250504,-460.0,0.00030136,7]
[370305179,1751944250513,-460.0,0.00030136,7]
[370305180,1751944250522,-490.0,0.00030136,7]
[370305181,1751944250532,-609.4,0.00030136,7]
[370305182,1751944250541,-460.0,0.00030136,7]
[370305183,1751944250550,-499.84286892,0.00030136,7]
[370305184,1751944250560,-460.0,0.00030136,7]
[370305185,1751944250569,-460.0,0.00030136,7]
[370305186,1751944250579,-490.0,0.00030136,7]
[370305187,1751944250588,-490.0,0.00030136,7]
[370305188,1751944250598,-1247.33,0.00030136,7]
[370305189,1751944250607,-492.38437555,0.00030136,7]
[370305190,1751944250616,-757.55,0.00030136,7]
[370305191,1751944250626,-490.0,0.00030136,7]
[370305192,1751944250635,-460.0,0.00030136,7]
[370305193,1751944250645,-460.0,0.00030136,7]
[370305194,1751944250654,-460.0,0.00030136,7]
[370305195,1751944250664,-495.76541281,0.00030136,7]
[370305196,1751944250674,-490.0,0.00030136,7]
[370305197,1751944250683,-460.0,0.00030136,7]
[370305198,1751944250693,-460.0,0.00030136,7]
[370305199,1751944250702,-460.0,0.00030136,7]
[370305200,1751944250711,-493.82685517,0.00030136,7]
[370305201,1751944250721,-460.0,0.00030136,7]
[370305202,1751944250730,-460.0,0.00030136,7]
[370305203,1751944250739,-493.26704288,0.00030136,7]
[370305204,1751944250749,-293.51162772,0.00030141,2]
[370305205,1751944250758,-293.51162772,0.00030257,2]
[370305206,1751944250767,-171.47,0.00030329,2]
[370305207,1751944250776,-293.51162772,0.00030372,2]
[370305208,1751944250785,-1088.72,0.00030398,7]
[370305209,1751944250795,-500.0,0.00030408,7]
[370305210,1751944250804,-500.0,0.00030408,7]
[370305211,1751944250813,-500.0,0.00030408,7]
[370305212,1751944250823,-460.0,0.00030409,7]
[370305213,1751944250832,-490.0,0.00030409,7]
[370305214,1751944250841,-231.68843171,0.00030409,7]
[370305215,1751944250851,-460.0,0.00030409,7]
[370305216,1751944250860,-490.0,0.00030409,7]
[370305217,1751944250869,-460.0,0.00030409,7]
[370305218,1751944250878,-489.22,0.00030409,7]
[370305219,1751944250888,-460.0,0.00030409,7]
[370305220,1751944250897,-500.0,0.00030409,7]
[370305221,1751944250907,-500.0,0.00030409,7]
[370305222,1751944250916,-669.98,0.00030409,7]
[370305223,1751944250926,-344.58812566,0.00030409,7]
[370305224,1751944251572,-542.54,0.00030136,7]
[370305225,1751944251581,-21.11258284,0.00030136,7]
[370305226,1751944251597,-869.07741716,0.00030136,7]
[370305227,1751944251607,-460.0,0.00030136,7]
[370305228,1751944251617,-460.0,0.00030136,7]
[370305229,1751944251627,-157.68039099,0.00030409,7]
[370305230,1751944251637,-954.23,0.00030409,7]
[370305231,1751944251647,-1049.71579225,0.00030409,7]
[370305232,1751944754220,155.14,0.00029152,120]
[370305233,1751945012971,223.82,0.00013699,2]
[370305234,1751945108629,2151.14940274,0.00014,2]
[370305235,1751945108654,3446.19121418,0.00014,2]
[370305257,1751945431762,-393.0,0.00013999,2]
[370305258,1751945431771,-8533.21693201,0.00014,2]
[370305259,1751945431782,-594.97642009,0.00014,2]
[370305260,1751945431793,-4990.77311291,0.00014,2]
[370305281,1751945437819,-310.250175,0.00014,2]
[370305452,1751945439779,-437.86900676,0.00014,2]
[370305458,1751945439836,-2175.0000005,0.00014,2]
[370305460,1751945439847,-1705.5582732,0.00014,2]
[370305462,1751945439859,-574.51572812,0.00014,2]
[370305487,1751945440116,-5642.71644768,0.00014,2]
[370305489,1751945440131,-271.56414994,0.00014,2]
[370305491,1751945440145,-1081.5995311,0.00014,2]
[370305493,1751945440156,-2504.64407047,0.00014,2]
[370305496,1751945440178,-707.16663727,0.00014,2]
[370305498,1751945440189,-1740.0911033,0.00014,2]
[370305500,1751945440200,-1199.30233872,0.00014,2]
[370305502,1751945440211,-1034.0,0.00014,2]
[370305509,1751945440274,-364.96708586,0.00014,2]
[370305511,1751945440285,-14317.15496143,0.00014,2]
[370305513,1751945440294,-2113.819999,0.000151,2]
[370305515,1751945440303,-203.5675578,0.00018,2]
[370305517,1751945440312,-156219.81520716,0.00018,2]
[370305518,1751945440321,-150.0,0.000181,2]
[370305520,1751945440330,-150.0,0.0001859,2]
[370305522,1751945440340,-160.0,0.0001907,2]
[370305524,1751945440349,-290.2,0.0001909,2]
[370305526,1751945440358,-188948.35611538,0.000191,3]
[370305528,1751945440367,-234.80930229,0.000191,2]
[370305529,1751945440376,-210.34477682,0.000191,3]
[370305531,1751945440386,-172.3857011,0.000191,2]
[370305533,1751945440395,-573.71229323,0.00019199,2]
[370305535,1751945440404,-163.44245595,0.00019199,2]
[370305537,1751945440413,-6642.04544049,0.000192,2]
[370305539,1751945440422,-6642.04544032,0.000192,2]
[370305541,1751945440431,-234.80930217,0.00019762,2]
[370305543,1751945440440,-6642.04544032,0.00019831,2]
[370305544,1751945440449,-234.80930217,0.00020424,2]
[370305546,1751945440459,-6642.04544032,0.00020797,4]
[370305548,1751945440468,-234.80930217,0.00021086,2]
[370305550,1751945440477,-234.80930217,0.00021748,2]
[370305552,1751945440487,-6642.04544032,0.00021762,5]
[370305553,1751945440496,-234.80930217,0.00022411,2]
[370305555,1751945440505,-6642.04544032,0.00022728,7]
[370305556,1751945440514,-234.80930217,0.00023073,2]
[370305557,1751945440523,-172.38570107,0.000232,2]
[370305558,1751945440532,-6642.04544032,0.00023693,9]
[370305559,1751945440541,-234.80930217,0.00023735,2]
[370305560,1751945440550,-2004.68458173,0.000239,2]
[370305561,1751945440560,-2209.1545948,0.00024,2]
[370305562,1751945440569,-5000.0,0.00024,5]
[370305563,1751945440579,-234.80930217,0.00024397,2]
[370305564,1751945440588,-5509.0,0.000246,5]
[370305565,1751945440596,-6642.04544032,0.00024659,11]
[370305566,1751945440606,-549.53,0.00024719,2]
[370305567,1751945440615,-177.04851362,0.000248,2]
[370305568,1751945440624,-234.80930217,0.00025059,2]
[370305569,1751945440632,-2004.68458164,0.00025069,2]
[370305570,1751945440641,-6642.04544032,0.00025624,13]
[370305571,1751945440650,-234.80930217,0.00025721,2]
[370305572,1751945440659,-2004.68458164,0.00026238,2]
[370305573,1751945440668,-234.80930217,0.00026383,2]
[370305574,1751945440677,-6642.04544032,0.0002659,15]
[370305575,1751945440686,-200.0,0.00026986,7]
[370305576,1751945440695,-234.80930217,0.00027045,2]
[370305577,1751945440704,-6721.49457546,0.00027269,2]
[370305579,1751945440714,-172.38570107,0.000273,2]
[370305582,1751945440727,-500.0,0.00027397,2]
[370305584,1751945440741,-500.0,0.00027397,2]
[370305587,1751945440754,-500.0,0.00027397,2]
[370305589,1751945440768,-500.0,0.00027397,2]
[370305591,1751945440778,-500.0,0.00027397,2]
[370305593,1751945440789,-500.0,0.00027397,2]
[370305596,1751945440800,-500.0,0.00027397,2]
[370305598,1751945440813,-500.0,0.00027397,2]
[370305600,1751945440823,-500.0,0.00027397,2]
[370305602,1751945440835,-500.0,0.00027397,2]
[370305604,1751945440847,-500.0,0.00027397,2]
[370305607,1751945440860,-224.04612811,0.00027397,2]
[370305609,1751945440872,-500.0,0.00027397,2]
[370305611,1751945440883,-2004.68458164,0.00027407,2]
[370305614,1751945440894,-14531.0,0.00027486,2]
[370305616,1751945440905,-6642.04544032,0.00027555,17]
[370305618,1751945440915,-234.80930217,0.00027707,2]
[370305620,1751945440926,-509.0,0.00027952,2]
[370305622,1751945440938,-509.0,0.00027952,2]
[370305625,1751945440950,-6721.49457546,0.000282,2]
[370305627,1751945440962,-234.80930217,0.00028369,2]
[370305629,1751945440974,-6642.04544032,0.00028521,19]
[370305631,1751945440985,-2004.68458164,0.00028576,2]
[370305634,1751945440996,-1000.0,0.00028922,2]
[370305636,1751945441008,-6721.49457546,0.00028974,2]
[370305638,1751945441020,-234.80930217,0.00029032,2]
[370305641,1751945441032,-2538.729332,0.00029052,2]
[370305643,1751945441044,-837.09214054,0.00029057,2]
[370305645,1751945441055,-160.0,0.00029057,2]
[370305647,1751945441066,-6721.49457546,0.00029131,2]
[370305650,1751945441078,-250.0,0.00029152,2]
[370305652,1751945441091,-151.0,0.00029369,2]
[370305654,1751945441102,-151.0,0.00029369,2]
[370305656,1751945441115,-151.0,0.00029369,2]
[370305659,1751945441125,-151.0,0.00029369,2]
[370305661,1751945441138,-151.0,0.00029369,2]
[370305663,1751945441153,-151.0,0.00029369,2]
[370305666,1751945441164,-151.0,0.00029369,2]
[370305668,1751945441177,-151.0,0.00029369,2]
[370305670,1751945441189,-151.0,0.00029369,2]
[370305673,1751945441203,-151.0,0.00029369,2]
[370305675,1751945441214,-151.0,0.00029369,2]
[370305677,1751945441226,-151.0,0.00029369,2]
[370305679,1751945441237,-151.0,0.00029369,2]
[370305681,1751945441248,-151.0,0.00029369,2]
[370305683,1751945441258,-13442.9891509,0.00029377,2]
[370305685,1751945441268,-300.0,0.00029379,2]
[370305687,1751945441278,-300.0,0.00029379,2]
[370305690,1751945441290,-207.4,0.00029379,2]
[370305692,1751945441303,-23900.0,0.00029387,2]
[370305694,1751945441316,-509.0,0.00029409,4]
[370305696,1751945441326,-160.99,0.0002947,2]
[370305699,1751945441336,-6642.04544032,0.00029486,21]
[370305701,1751945441347,-347.03,0.00029496,2]
[370305703,1751945441356,-159.66,0.00029623,2]
[370305705,1751945441367,-2538.72933197,0.00029624,2]
[370305707,1751945441378,-234.80930217,0.00029694,2]
[370305709,1751945441391,-700.0,0.000297,10]
[370305712,1751945441405,-2004.68458164,0.00029744,2]
[370305714,1751945441417,-20164.4837264,0.0002979,2]
[370305716,1751945441428,-42212.64772088,0.000298,7]
[370305718,1751945441438,-1500.0,0.000298,10]
[370305720,1751945441449,-210.34477682,0.000298,7]
[370305723,1751945441460,-502.68308507,0.00029859,2]
[370305725,1751945441471,-490.0,0.00029863,14]
[370305727,1751945441481,-24441.68598145,0.0002989,2]
[370305729,1751945441492,-676648.10397233,0.0002989,2]
[370305731,1751945441503,-6721.49457546,0.0002989,2]
[370305733,1751945441514,-2300.0,0.000299,10]
[370305736,1751945441528,-395.07434532,0.00030025,2]
[370305738,1751945441539,-6721.49457546,0.00030026,2]
[370305740,1751945441550,-2598.2882,0.00030036,2]
[370305742,1751945441560,-14202.7529,0.00030036,2]
[370305745,1751945441571,-1000.0,0.00030036,2]
[370305747,1751945441582,-2345.1764,0.00030036,2]
[370305749,1751945441593,-465.3566,0.00030036,3]
[370305751,1751945441604,-6721.49457546,0.0003009,2]
[370305753,1751945441615,-6721.49457546,0.00030099,2]
[370305755,1751945441626,-2000.0,0.000301,2]
[370305757,1751945441636,-6721.49457546,0.000301,2]
[370305760,1751945441647,-210.34477682,0.00030106,2]
[370305762,1751945441658,-6315.44858128,0.0003011,2]
[370305764,1751945441669,-6761.84023917,0.0003011,2]
[370305766,1751945441679,-154.47,0.00030115,2]
[370305768,1751945441690,-226.31459662,0.00030115,2]
[370305770,1751945441700,-101355.19172334,0.00030126,2]
[370305782,1751945442810,-549.53,0.00025955,2]
[370305783,1751945442821,-549.53,0.00027191,2]
[370305784,1751945442832,-549.53,0.00028426,2]
[370305785,1751945442843,-549.53,0.00029662,2]
[370305786,1751945442855,-33074.69978566,0.00030126,2]
[370305787,1751945442866,-87151.4492163,0.00030126,2]
[370305788,1751945442876,-255.11301155,0.00030136,7]
[370305789,1751945442887,-243.58863324,0.00030136,7]
[370305790,1751945442900,-216.41136676,0.00030136,7]
[370305791,1751945442911,-490.0,0.00030136,7]
[370305792,1751945442921,-490.0,0.00030136,7]
[370305793,1751945442932,-490.0,0.00030136,7]
[370305794,1751945442943,-490.0,0.00030136,7]
[370305795,1751945442954,-490.0,0.00030136,7]
[370305796,1751945442966,-490.0,0.00030136,7]
[370305797,1751945442977,-490.0,0.00030136,7]
[370305798,1751945442990,-500.0,0.00030136,7]
[370305799,1751945443001,-1000.0,0.00030136,7]
[370305800,1751945443013,-490.0,0.00030136,7]
[370305801,1751945443024,-460.0,0.00030136,7]
[370305802,1751945443035,-460.0,0.00030136,7]
[370305803,1751945443046,-490.0,0.00030136,7]
[370305804,1751945443057,-490.0,0.00030136,7]
[370305805,1751945443068,-460.0,0.00030136,7]
[370305806,1751945443080,-460.0,0.00030136,7]
[370305807,1751945443092,-460.0,0.00030136,7]
[370305808,1751945443104,-460.0,0.00030136,7]
[370305809,1751945443115,-413.77,0.00030136,7]
[370305810,1751945443125,-460.0,0.00030136,7]
[370305811,1751945443136,-460.0,0.00030136,7]
[370305812,1751945443149,-460.0,0.00030136,7]
[370305813,1751945443159,-460.0,0.00030136,7]
[370305814,1751945443169,-460.0,0.00030136,7]
[370305815,1751945443180,-490.0,0.00030136,7]
[370305816,1751945443193,-490.0,0.00030136,7]
[370305817,1751945443203,-460.0,0.00030136,7]
[370305818,1751945443213,-490.0,0.00030136,7]
[370305819,1751945443224,-460.0,0.00030136,7]
[370305820,1751945443235,-594.22835147,0.00030136,7]
[370305821,1751945443247,-495.38014621,0.00030136,7]
[370305822,1751945443258,-460.0,0.00030136,7]
[370305823,1751945443270,-463.04860155,0.00030136,7]
[370305824,1751945443283,-491.06607632,0.00030136,7]
[370305825,1751945443294,-491.24630933,0.00030136,7]
[370305826,1751945443306,-490.0,0.00030136,7]
[370305827,1751945443316,-490.0,0.00030136,7]
[370305828,1751945443327,-494.38003382,0.00030136,7]
[370305829,1751945443337,-465.44393654,0.00030136,7]
[370305830,1751945443347,-460.0,0.00030136,7]
[370305831,1751945443358,-191.59,0.00030136,7]
[370305832,1751945443370,-490.0,0.00030136,7]
[370305833,1751945443382,-490.0,0.00030136,7]
[370305834,1751945443394,-493.08883243,0.00030136,7]
[370305835,1751945443406,-460.0,0.00030136,7]
[370305836,1751945443416,-490.0,0.00030136,7]
[370305837,1751945443427,-334.42881183,0.00030136,7]
[370305838,1751945443439,-460.0,0.00030136,7]
[370305839,1751945443451,-490.0,0.00030136,7]
[370305840,1751945443461,-490.0,0.00030136,7]
[370305841,1751945443472,-491.3,0.00030136,7]
[370305842,1751945443484,-460.0,0.00030136,7]
[370305843,1751945443495,-492.11,0.00030136,7]
[370305844,1751945443505,-573.16,0.00030136,7]
[370305845,1751945443517,-460.0,0.00030136,7]
[370305846,1751945443528,-460.0,0.00030136,7]
[370305847,1751945443538,-460.0,0.00030136,7]
[370305848,1751945443548,-460.0,0.00030136,7]
[370305849,1751945443559,-605.67,0.00030136,7]
[370305850,1751945443569,-460.0,0.00030136,7]
[370305851,1751945443579,-460.0,0.00030136,7]
[370305852,1751945443590,-207.05,0.00030136,7]
[370305853,1751945443601,-500.0,0.00030136,7]
[370305854,1751945443612,-500.0,0.00030136,7]
[370305855,1751945443622,-460.0,0.00030136,7]
[370305856,1751945443633,-460.0,0.00030136,7]
[370305857,1751945443643,-338.7,0.00030136,7]
[370305858,1751945443654,-460.0,0.00030136,7]